bitfinex/quotes_BTCUSD_20250219
["timestamp","ask_amount","ask_price","bid_price","bid_amount"]
[1739956557054,0.01684814,95952.0,95940.0,0.0468]
[1739956557254,0.01684814,95952.0,95951.0,0.02042972]
[1739956557457,0.01684814,95952.0,95947.0,0.156335]
[1739956557655,0.01684814,95952.0,95951.0,0.01442972]
[1739956557866,0.01684814,95952.0,95947.0,0.156335]
[1739956558064,0.01684814,95952.0,95951.0,0.01442972]
[1739956558266,0.01684814,95952.0,95951.0,0.006]
[1739956558466,0.17317614,95952.0,95951.0,0.02042972]
[1739956558736,0.17317614,95952.0,95951.0,0.006]
[1739956559089,0.17317614,95952.0,95951.0,0.02042972]
[1739956559284,0.01684814,95952.0,95951.0,0.006]
[1739956559488,0.01684814,95952.0,95951.0,0.02042972]
[1739956559711,0.01684814,95952.0,95947.0,0.156335]
[1739956559936,0.01684814,95952.0,95951.0,0.01442972]
[1739956560139,0.01684814,95952.0,95947.0,0.156335]
[1739956560372,0.01684814,95952.0,95951.0,0.01442972]
[1739956560774,0.01684814,95952.0,95947.0,0.156335]
[1739956560978,0.01684814,95952.0,95948.0,0.222876]
[1739956561163,0.01684814,95952.0,95948.0,0.014431]
[1739956561473,0.01684814,95952.0,95951.0,0.006]
[1739956561863,0.01684814,95952.0,95951.0,0.02042972]
[1739956562075,0.17317614,95952.0,95946.0,0.156337]
[1739956562237,0.17317614,95952.0,95951.0,0.01442972]
[1739956562435,0.17317614,95952.0,95946.0,0.156337]
[1739956562662,0.01684814,95952.0,95951.0,0.01442972]
[1739956562889,0.00051171,95952.0,95948.0,0.156333]
[1739956563100,0.00051171,95952.0,95951.0,0.01442972]
[1739956563399,0.00051171,95952.0,95951.0,0.02042972]
[1739956563602,0.00051171,95952.0,95951.0,0.006]
[1739956563819,0.00051171,95952.0,95951.0,0.02042972]
[1739956564009,0.00051171,95952.0,95951.0,0.006]
[1739956564217,0.00051171,95952.0,95951.0,0.02042972]
[1739956564419,0.00051171,95952.0,95951.0,0.006]
[1739956564655,0.00051171,95952.0,95951.0,0.02042972]
[1739956564774,0.00051171,95952.0,95951.0,0.006]
[1739956564975,0.00051171,95952.0,95951.0,0.01442972]
[1739956565185,0.00051171,95952.0,95948.0,0.162334]
[1739956565391,0.00051171,95952.0,95951.0,0.01442972]
[1739956565638,0.00051171,95952.0,95948.0,0.156334]
[1739956565781,0.00051171,95952.0,95951.0,0.01442972]
[1739956565986,0.00051171,95952.0,95951.0,0.02557251]
[1739956566188,0.01684833,95952.0,95951.0,0.04000223]
[1739956571529,0.01684833,95952.0,95951.0,0.02557251]
[1739956572157,0.01684833,95952.0,95951.0,0.04000223]
[1739956573257,0.01684833,95952.0,95951.0,0.03400223]
[1739956573470,0.00051171,95952.0,95951.0,0.03400223]
[1739956574658,0.00051171,95952.0,95951.0,0.02557251]
[1739956574834,0.00051171,95952.0,95951.0,0.03400223]
[1739956575280,0.00051171,95952.0,95951.0,0.04000223]
[1739956576932,0.016848,95952.0,95951.0,0.04000223]
[1739956577792,0.18872847,95961.0,95951.0,0.04000223]
[1739956577995,0.156323,95955.0,95951.0,0.04000223]
[1739956578993,0.156323,95955.0,95951.0,0.03400223]
[1739956579339,0.156323,95955.0,95952.0,0.01957251]
[1739956579930,0.01633627,95955.0,95952.0,0.01957251]
[1739956580144,0.17265927,95955.0,95952.0,0.01957251]
[1739956580349,0.17265927,95955.0,95953.0,0.01442887]
[1739956580591,0.17265927,95955.0,95952.0,0.01957251]
[1739956580794,0.01633627,95955.0,95953.0,0.01442887]
[1739956580968,0.01633627,95955.0,95953.0,0.03400138]
[1739956581411,0.17265927,95955.0,95953.0,0.01957251]
[1739956581864,0.01633627,95955.0,95953.0,0.01957251]
[1739956582221,0.01633627,95955.0,95953.0,0.02457251]
[1739956582402,0.01633627,95955.0,95954.0,0.03400095]
[1739956582775,0.156323,95955.0,95954.0,0.03400095]
[1739956583018,0.156323,95955.0,95954.0,0.01957251]
[1739956584654,0.156323,95955.0,95954.0,0.02457251]
[1739956584898,0.306323,95955.0,95954.0,0.02457251]
[1739956585118,0.15,95955.0,95954.0,0.02457251]
[1739956585554,0.15,95955.0,95954.0,0.03900095]
[1739956595090,0.306323,95955.0,95954.0,0.03900095]
[1739956595301,0.15,95955.0,95954.0,0.03900095]
[1739956596283,0.306323,95955.0,95954.0,0.03900095]
[1739956596687,0.32265919,95955.0,95954.0,0.03900095]
[1739956596798,0.32265919,95955.0,95954.0,0.02457251]
[1739956597018,0.16633619,95955.0,95954.0,0.03900095]
[1739956597231,0.32265919,95955.0,95954.0,0.03900095]
[1739956597614,0.32265919,95955.0,95954.0,0.02457251]
[1739956598003,0.16633619,95955.0,95954.0,0.03900095]
[1739956598216,0.32265919,95955.0,95954.0,0.03900095]
[1739956598613,0.32265919,95955.0,95954.0,0.02457251]
[1739956599439,0.32265919,95955.0,95954.0,0.03900095]
[1739956600576,0.32265919,95955.0,95954.0,0.02457251]
[1739956600976,0.32265919,95955.0,95954.0,0.03900095]
[1739956601610,0.32265919,95955.0,95954.0,0.02457251]
[1739956606643,0.306323,95955.0,95954.0,0.02457251]
[1739956607198,0.306323,95955.0,95954.0,0.0058508]
[1739956609978,0.32265906,95955.0,95954.0,0.0058508]
[1739956613256,0.306323,95955.0,95954.0,0.0058508]
[1739956616536,0.32265925,95955.0,95954.0,0.0058508]
[1739956619179,0.16633625,95955.0,95954.0,0.0058508]
[1739956619407,0.16633625,95955.0,95954.0,0.0528508]
[1739956619609,0.16633625,95955.0,95954.0,0.14837924]
[1739956620466,0.16633625,95955.0,95954.0,0.14337924]
[1739956620902,0.16633625,95955.0,95954.0,0.14937924]
[1739956621101,0.16633625,95955.0,95954.0,0.14337924]
[1739956622062,0.16633625,95955.0,95954.0,0.14837924]
[1739956622273,0.16633625,95955.0,95954.0,0.14337924]
[1739956622684,0.16633625,95955.0,95954.0,0.14937924]
[1739956622908,0.15,95955.0,95954.0,0.14937924]
[1739956623124,0.306323,95955.0,95954.0,0.14937924]
[1739956623342,0.15,95955.0,95954.0,0.14937924]
[1739956624065,0.306323,95955.0,95954.0,0.14337924]
[1739956624173,0.15,95955.0,95954.0,0.14937924]
[1739956624383,0.15,95955.0,95954.0,0.14337924]
[1739956624790,0.15,95955.0,95954.0,0.14937924]
[1739956626099,0.16633617,95955.0,95954.0,0.14937924]
[1739956626659,0.32265917,95955.0,95954.0,0.14937924]
[1739956626857,0.16633617,95955.0,95954.0,0.14937924]
[1739956629452,0.32265917,95955.0,95954.0,0.14937924]
[1739956629808,0.32265917,95955.0,95954.0,0.1349508]
[1739956631279,0.32265917,95955.0,95954.0,0.1289508]
[1739956631593,0.32265917,95955.0,95954.0,0.1349508]
[1739956632465,0.16633617,95955.0,95954.0,0.1349508]
[1739956632926,0.16633617,95955.0,95954.0,0.14937924]
[1739956633477,0.306323,95955.0,95954.0,0.14937924]
[1739956633718,0.306323,95955.0,95954.0,0.02127924]
[1739956634165,0.306323,95955.0,95954.0,0.0068508]
[1739956634400,0.306323,95955.0,95954.0,0.0008508]
[1739956634607,0.306323,95955.0,95954.0,0.0068508]
[1739956636320,0.32265921,95955.0,95954.0,0.0068508]
[1739956642435,0.32265921,95955.0,95954.0,0.0008508]
[1739956642637,0.32265921,95955.0,95954.0,0.0058508]
[1739956642931,0.32265921,95955.0,95954.0,0.0008508]
[1739956643261,0.32265921,95955.0,95954.0,0.0058508]
[1739956643436,0.306323,95955.0,95954.0,0.0058508]
[1739956647758,0.32265991,95955.0,95954.0,0.0058508]
[1739956648182,0.32265991,95955.0,95954.0,0.0008508]
[1739956648591,0.32265991,95955.0,95954.0,0.0058508]
[1739956648795,0.32265991,95955.0,95954.0,0.0008508]
[1739956649118,0.32265991,95955.0,95954.0,0.0018508]
[1739956653433,0.306323,95955.0,95954.0,0.0018508]
[1739956656541,0.32266078,95955.0,95954.0,0.0018508]
[1739956658137,0.01633778,95955.0,95954.0,0.0018508]
[1739956658513,0.17266078,95955.0,95954.0,0.0018508]
[1739956662332,0.306323,95955.0,95954.0,0.0018508]
[1739956665867,0.32266115,95955.0,95954.0,0.0018508]
[1739956673319,0.306323,95955.0,95954.0,0.0018508]
[1739956676291,0.3226608,95955.0,95954.0,0.0018508]
[1739956681319,0.0167632,95955.0,95954.0,0.1295508]
[1739956681737,0.0167632,95955.0,95954.0,0.14355808]
[1739956681942,0.0167632,95955.0,95954.0,0.14255808]
[1739956682148,0.0167632,95955.0,95954.0,0.14355808]
[1739956683391,0.0004254,95955.0,95954.0,0.14255808]
[1739956683770,0.0004254,95955.0,95954.0,0.14955808]
[1739956683969,0.0004254,95955.0,95954.0,0.14255808]
[1739956684374,0.1567484,95955.0,95954.0,0.14955808]
[1739956684589,0.1567484,95955.0,95954.0,0.14255808]
[1739956684765,0.0004254,95955.0,95954.0,0.14255808]
[1739956684966,0.0004254,95955.0,95954.0,0.14955808]
[1739956685173,0.0004254,95955.0,95954.0,0.14255808]
[1739956686496,0.01676142,95955.0,95954.0,0.14255808]
[1739956686700,0.01676142,95955.0,95954.0,0.14955808]
[1739956689076,0.01676142,95955.0,95954.0,0.30588208]
[1739956689498,0.01676142,95955.0,95954.0,0.14955808]
[1739956690068,0.02178358,95986.0,95955.0,0.0755]
[1739956690263,0.156315,95960.0,95956.0,0.01400642]
[1739956690474,0.15,95965.0,95957.0,0.0796]
[1739956690756,0.15,95965.0,95959.0,0.0796]
[1739956690964,0.156308,95964.0,95959.0,0.0796]
[1739956691172,0.156308,95964.0,95960.0,0.01400472]
[1739956691376,0.156308,95964.0,95961.0,0.0796]
[1739956691805,0.15,95971.0,95962.0,0.01400387]
[1739956692005,0.208398,95970.0,95963.0,0.076]
[1739956692155,0.22472928,95972.0,95964.0,0.0481]
[1739956692156,0.01633528,95972.0,95964.0,0.0481]
[1739956692362,0.22472928,95972.0,95965.0,0.0802]
[1739956692536,0.15,95975.0,95965.0,0.0802]
[1739956692742,0.01909175,95977.0,95966.0,0.01400216]
[1739956692943,0.156303,95967.0,95966.0,0.01400216]
[1739956693573,0.156305,95966.0,95965.0,0.0802]
[1739956693742,0.0004254,95972.0,95965.0,0.0802]
[1739956693940,0.156305,95966.0,95965.0,0.0802]
[1739956695065,0.1504254,95972.0,95965.0,0.0802]
[1739956695266,0.0004254,95972.0,95965.0,0.0802]
[1739956695577,0.156305,95966.0,95965.0,0.0832]
[1739956696837,0.156305,95966.0,95965.0,0.0802]
[1739956697033,0.01633443,95966.0,95965.0,0.0802]
[1739956697383,0.01633443,95966.0,95965.0,0.0822]
[1739956697603,0.01633443,95966.0,95965.0,0.0802]
[1739956697786,0.01633443,95966.0,95965.0,0.0842]
[1739956698691,0.01633443,95966.0,95965.0,0.240506]
[1739956698895,0.01633443,95966.0,95965.0,0.289006]
[1739956699719,0.01633443,95966.0,95965.0,0.1327]
[1739956700336,0.01633443,95966.0,95965.0,0.289006]
[1739956703281,0.0004254,95972.0,95965.0,0.3771]
[1739956703484,0.0004254,95972.0,95968.0,0.0756]
[1739956703699,0.0004254,95972.0,95969.0,0.0473]
[1739956703913,0.0004254,95972.0,95970.0,0.0756]
[1739956705186,0.0004254,95972.0,95971.0,0.01400003]
[1739956705787,0.0004254,95972.0,95971.0,0.29319703]
[1739956706215,0.0004254,95972.0,95971.0,0.39570068]
[1739956707255,0.1567204,95972.0,95971.0,0.13690003]
[1739956707534,0.3067204,95972.0,95971.0,0.02100003]
[1739956707742,0.32305382,95972.0,95971.0,0.02100003]
[1739956707956,0.32305382,95972.0,95971.0,0.01822004]
[1739956708159,0.32305382,95972.0,95971.0,0.007]
[1739956708360,0.32305382,95972.0,95971.0,0.01822005]
[1739956708619,0.156305,95966.0,95955.0,0.5457]
[1739956709272,0.156306,95965.0,95954.0,0.0760508]
[1739956711352,0.208404,95968.0,95954.0,0.0760508]
[1739956711558,0.156306,95965.0,95964.0,0.003851]
[1739956711986,0.156306,95965.0,95964.0,0.000851]
[1739956713440,0.156306,95965.0,95964.0,0.003851]
[1739956716368,0.1726403,95965.0,95964.0,0.003851]
[1739956721268,0.1726403,95965.0,95964.0,0.000851]
[1739956721476,0.1726403,95965.0,95964.0,0.003851]
[1739956722870,0.1726403,95965.0,95964.0,0.000851]
[1739956723043,0.1726403,95965.0,95964.0,0.003851]
[1739956723470,0.156306,95965.0,95964.0,0.003851]
[1739956726766,0.17264042,95965.0,95964.0,0.003851]
[1739956727186,0.17264042,95965.0,95964.0,0.080451]
[1739956727393,0.17264042,95965.0,95964.0,0.077451]
[1739956727593,0.17264042,95965.0,95964.0,0.128551]
[1739956727788,0.17264042,95965.0,95964.0,0.1472219]
[1739956728318,0.01633442,95965.0,95964.0,0.1472219]
[1739956728521,0.17264042,95965.0,95964.0,0.1472219]
[1739956730478,0.17264042,95965.0,95964.0,0.1432219]
[1739956730674,0.17264042,95965.0,95964.0,0.1462219]
[1739956731080,0.17264042,95965.0,95964.0,0.1432219]
[1739956732226,0.156306,95965.0,95964.0,0.1432219]
[1739956732454,0.156306,95965.0,95964.0,0.1482219]
[1739956733281,0.0004255,95967.0,95964.0,0.1482219]
[1739956733585,0.156306,95965.0,95964.0,0.1482219]
[1739956734180,0.156306,95965.0,95964.0,0.1432219]
[1739956735394,0.156306,95965.0,95964.0,0.1472219]
[1739956735601,0.156306,95965.0,95964.0,0.1432219]
[1739956736023,0.156306,95965.0,95964.0,0.1482219]
[1739956742150,0.17264037,95965.0,95964.0,0.1482219]
[1739956743576,0.156306,95965.0,95964.0,0.1482219]
[1739956747467,0.156306,95965.0,95964.0,0.0245219]
[1739956747803,0.17264089,95965.0,95964.0,0.005851]
[1739956748648,0.17264089,95965.0,95964.0,0.000851]
[1739956748884,0.17264089,95965.0,95964.0,0.003851]
[1739956749324,0.39671342,95965.0,95964.0,0.003851]
[1739956749499,0.48321342,95965.0,95964.0,0.003851]
[1739956749835,4.21000842,95965.0,95964.0,0.003851]
[1739956750030,4.13593589,95965.0,95964.0,0.003851]
[1739956750206,4.13593589,95965.0,95964.0,0.000851]
[1739956750434,4.13593589,95965.0,95964.0,1e-06]
[1739956750627,4.14366687,95965.0,95964.0,1e-06]
[1739956751000,4.24617052,95965.0,95964.0,1e-06]
[1739956751410,4.14366687,95965.0,95964.0,1e-06]
[1739956752477,4.16366687,95965.0,95964.0,1e-06]
[1739956753244,4.14733198,95965.0,95964.0,1e-06]
[1739956753806,4.1684007,95965.0,95964.0,1e-06]
[1739956756719,0.45794324,95965.0,95964.0,1e-06]
[1739956757087,4.18473824,95965.0,95964.0,1e-06]
[1739956757285,4.28724189,95965.0,95964.0,1e-06]
[1739956757899,4.18473824,95965.0,95964.0,1e-06]
[1739956758314,4.18473824,95965.0,95923.0,0.3246]
[1739956758315,0.0553,95946.0,95923.0,0.3246]
[1739956758516,0.0553,95946.0,95937.0,8e-07]
[1739956758517,0.30635,95938.0,95937.0,8e-07]
[1739956758667,0.32635,95938.0,95937.0,8e-07]
[1739956759044,0.3426918,95938.0,95937.0,8e-07]
[1739956759478,0.41662632,95938.0,95937.0,8.691e-05]
[1739956759978,0.3426918,95938.0,95937.0,8.691e-05]
[1739956760581,4.0694868,95938.0,95937.0,8.691e-05]
[1739956761372,4.0494868,95938.0,95937.0,8.691e-05]
[1739956762002,4.05743198,95938.0,95937.0,8.691e-05]
[1739956762435,4.07842902,95938.0,95937.0,8.691e-05]
[1739956762642,4.13975279,95938.0,95937.0,8.691e-05]
[1739956763515,4.12341099,95938.0,95937.0,8.691e-05]
[1739956764434,2.17361218,95938.0,95937.0,8.691e-05]
[1739956766058,2.17561218,95938.0,95937.0,8.691e-05]
[1739956767047,2.19195437,95938.0,95937.0,8.691e-05]
[1739956767292,0.33263737,95938.0,95937.0,8.691e-05]
[1739956767621,4.05943237,95938.0,95937.0,8.691e-05]
[1739956767826,0.17469219,95938.0,95937.0,8.691e-05]
[1739956768274,0.17269219,95938.0,95937.0,8.691e-05]
[1739956768479,0.32469219,95938.0,95937.0,8.691e-05]
[1739956768682,0.32469219,95938.0,95937.0,0.08138691]
[1739956768996,0.32269219,95938.0,95937.0,0.08138691]
[1739956773202,0.30635,95938.0,95937.0,0.08138691]
[1739956773826,0.15,95939.0,95937.0,0.08138691]
[1739956774039,0.15635,95938.0,95937.0,0.08138691]
[1739956775609,0.03640791,95939.0,95937.0,0.08138691]
[1739956775824,0.15635,95938.0,95937.0,0.08138691]
[1739956776540,0.1726908,95938.0,95937.0,0.08138691]
[1739956777176,0.1731164,95938.0,95937.0,0.08138691]
[1739956783241,0.1567756,95938.0,95937.0,0.08138691]
[1739956786356,0.1731164,95938.0,95937.0,0.08138691]
[1739956793062,0.1567756,95938.0,95937.0,0.08138691]
[1739956797636,0.17311628,95938.0,95937.0,0.08138691]
[1739956803414,0.1567756,95938.0,95937.0,0.08138691]
[1739956804807,0.1567756,95938.0,95937.0,8.691e-05]
[1739956804808,0.3067756,95938.0,95937.0,8.691e-05]
[1739956805020,1.4755606,95938.0,95937.0,8.691e-05]
[1739956807743,1.4785606,95938.0,95937.0,8.691e-05]
[1739956807942,1.49490228,95938.0,95937.0,8.691e-05]
[1739956808541,1.4785606,95938.0,95937.0,8.691e-05]
[1739956810113,0.3097756,95938.0,95937.0,8.691e-05]
[1739956810344,0.1567756,95938.0,95937.0,0.04888691]
[1739956811085,0.1587756,95938.0,95937.0,0.04888691]
[1739956811492,0.1567756,95938.0,95937.0,0.04888691]
[1739956812065,0.17311545,95938.0,95937.0,0.04888691]
[1739956812280,0.17311545,95938.0,95937.0,0.06360345]
[1739956813284,0.17311545,95938.0,95937.0,0.14560345]
[1739956813285,0.01676545,95938.0,95937.0,0.14560345]
[1739956813511,0.0004256,95938.0,95937.0,0.14560345]
[1739956813724,0.1567756,95938.0,95937.0,0.14560345]
[1739956813946,0.0004256,95938.0,95937.0,0.14560345]
[1739956814959,0.0004256,95938.0,95937.0,0.13088691]
[1739956815156,0.1567756,95938.0,95937.0,0.13088691]
[1739956815360,0.0004256,95938.0,95937.0,0.14560345]
[1739956815899,0.0004256,95938.0,95937.0,0.30195545]
[1739956816240,0.0004256,95938.0,95937.0,0.14560345]
[1739956816431,0.01676388,95938.0,95937.0,0.14560345]
[1739956817495,0.01676388,95938.0,95937.0,0.30195545]
[1739956818457,0.01676388,95938.0,95937.0,0.14560345]
[1739956819761,0.01676388,95938.0,95937.0,0.30195545]
[1739956819961,0.208444,95949.0,95938.0,0.0823]
[1739956820172,0.156341,95944.0,95938.0,0.0823]
[1739956820376,0.02169498,95967.0,95937.0,0.21995545]
[1739956820377,0.02169498,95967.0,95940.0,0.0818]
[1739956820584,0.156346,95941.0,95940.0,0.0818]
[1739956822401,0.156344,95942.0,95940.0,0.0818]
[1739956823601,0.156346,95941.0,95940.0,0.0818]
[1739956823809,0.156344,95942.0,95940.0,0.0818]
[1739956824004,0.157344,95942.0,95940.0,0.0818]
[1739956824210,0.156346,95941.0,95940.0,0.0818]
[1739956824423,0.1567716,95941.0,95940.0,0.0818]
[1739956826648,0.15635,95938.0,95937.0,0.04888691]
[1739956827009,0.15635,95938.0,95937.0,0.06360345]
[1739956829112,0.17269004,95938.0,95937.0,0.06360345]
[1739956831022,0.0004256,95941.0,95937.0,0.06360345]
[1739956831180,0.17269002,95938.0,95937.0,0.06360345]
[1739956831609,0.17269002,95938.0,95937.0,0.04888691]
[1739956835247,0.15635,95938.0,95937.0,0.04888691]
[1739956839695,0.17269014,95938.0,95937.0,0.04888691]
[1739956852305,0.15635,95938.0,95937.0,0.04888691]
[1739956853150,0.10571575,95940.0,95937.0,0.04888691]
[1739956853345,0.0004256,95940.0,95937.0,0.04888691]
[1739956853553,0.15635,95938.0,95937.0,0.04888691]
[1739956855244,0.15635,95938.0,95937.0,8.691e-05]
[1739956856280,1.577669,95938.0,95937.0,8.691e-05]
[1739956856448,3.08895565,95938.0,95937.0,8.691e-05]
[1739956856648,2.628715,95938.0,95937.0,8.691e-05]
[1739956857011,2.397782,95938.0,95937.0,8.691e-05]
[1739956857495,2.547782,95938.0,95937.0,8.691e-05]
[1739956858048,2.56914396,95938.0,95937.0,8.691e-05]
[1739956859910,2.57114396,95938.0,95937.0,8.691e-05]
[1739956860584,1.847734,95938.0,95937.0,8.691e-05]
[1739956860754,1.761711,95938.0,95937.0,8.691e-05]
[1739956863515,1.86421465,95938.0,95937.0,8.691e-05]
[1739956863713,0.41085365,95938.0,95937.0,8.691e-05]
[1739956863942,3.96432865,95938.0,95937.0,8.691e-05]
[1739956864140,2.58032565,95938.0,95937.0,8.691e-05]
[1739956864753,2.477822,95938.0,95937.0,8.691e-05]
[1739956865642,1.203924,95938.0,95937.0,8.691e-05]
[1739956871375,0.306375,95923.0,95922.0,0.0767]
[1739956871650,0.15,95937.0,95903.0,0.1273]
[1739956871651,0.156406,95904.0,95903.0,0.1273]
[1739956872609,0.06112802,95920.0,95903.0,0.0499]
[1739956872610,0.208514,95917.0,95903.0,0.0499]
[1739956872835,0.22756212,95917.0,95904.0,0.0808]
[1739956873070,0.156404,95905.0,95904.0,0.0808]
[1739956874518,0.156404,95905.0,95904.0,0.0858]
[1739956874822,0.156403,95906.0,95904.0,0.0858]
[1739956875227,0.156404,95905.0,95904.0,0.0858]
[1739956875828,0.156404,95905.0,95904.0,0.0808]
[1739956876205,0.156404,95905.0,95904.0,0.0858]
[1739956876555,0.156404,95905.0,95904.0,0.0808]
[1739956876681,0.157404,95905.0,95904.0,0.0868]
[1739956884836,0.157404,95905.0,95904.0,0.087651]
[1739956885445,0.157404,95905.0,95904.0,0.09965807]
[1739956893962,0.157404,95905.0,95904.0,0.01885807]
[1739956894165,0.157404,95905.0,95904.0,0.006851]
[1739956901097,0.157404,95905.0,95904.0,0.083951]
[1739956911129,0.208524,95912.0,95904.0,0.083951]
[1739956911344,0.156403,95906.0,95905.0,0.01458495]
[1739956911940,0.208534,95908.0,95904.0,0.083951]
[1739956912116,0.156404,95905.0,95904.0,0.083951]
[1739956912466,0.156404,95905.0,95904.0,0.077951]
[1739956912785,0.156404,95905.0,95904.0,0.080951]
[1739956912918,0.156404,95905.0,95904.0,0.077951]
[1739956913116,0.156404,95905.0,95904.0,0.000851]
[1739956913361,0.156404,95905.0,95904.0,0.005851]
[1739956941337,0.0004257,95907.0,95904.0,0.005851]
[1739956941640,0.156404,95905.0,95904.0,0.005851]
[1739956942078,0.156404,95905.0,95904.0,0.000851]
[1739956942552,0.156404,95905.0,95904.0,0.005851]
[1739956942899,0.156404,95905.0,95904.0,0.000851]
[1739956943214,0.156404,95905.0,95904.0,0.005851]
[1739956947094,0.306404,95905.0,95904.0,0.005851]
[1739956947504,4.033199,95905.0,95904.0,0.005851]
[1739956948271,4.033199,95905.0,95904.0,0.000851]
[1739956948708,4.036199,95905.0,95904.0,0.000851]
[1739956948902,4.033199,95905.0,95904.0,0.000851]
[1739956949277,4.09523998,95905.0,95904.0,0.000851]
[1739956949702,4.054199,95905.0,95904.0,0.000851]
[1739956951551,4.034199,95905.0,95904.0,0.000851]
[1739956951765,2.116211,95905.0,95904.0,0.000851]
[1739956951963,0.969137,95905.0,95904.0,0.000851]
[1739956952135,0.768265,95905.0,95904.0,0.000851]
[1739956953948,0.811265,95905.0,95904.0,0.000851]
[1739956954154,0.788265,95905.0,95904.0,0.000851]
[1739956954321,0.768265,95905.0,95904.0,0.000851]
[1739956954488,0.788265,95905.0,95904.0,0.000851]
[1739956956328,0.15,95900.0,95897.0,0.0008112]
[1739956956510,0.306416,95898.0,95897.0,0.00085469]
[1739956956712,4.033211,95898.0,95897.0,0.00085469]
[1739956958103,4.034211,95898.0,95897.0,0.00085469]
[1739956960131,4.06327241,95898.0,95897.0,0.00085469]
[1739956961345,4.16577606,95898.0,95897.0,0.00085469]
[1739956961504,4.06327241,95898.0,95897.0,0.00085469]
[1739956962632,4.10627241,95898.0,95897.0,0.00085469]
[1739956963036,0.306422,95894.0,95874.0,0.0779]
[1739956963376,4.033217,95894.0,95893.0,0.00128666]
[1739956964490,0.306422,95894.0,95893.0,0.00128666]
[1739956964687,4.034217,95894.0,95893.0,0.00128666]
[1739956969500,4.13672065,95894.0,95893.0,0.00128666]
[1739956972738,4.034217,95894.0,95893.0,0.00128666]
[1739956975415,3.83619153,95894.0,95893.0,0.00128666]
[1739956975852,3.99261353,95894.0,95893.0,0.00128666]
[1739956986730,0.306434,95887.0,95886.0,0.0831]
[1739956986941,3.492095,95887.0,95886.0,0.08323056]
[1739956987098,3.432849,95887.0,95886.0,0.08323056]
[1739956988172,2.90698,95887.0,95886.0,0.08323056]
[1739956988380,2.90698,95887.0,95886.0,0.08423056]
[1739956991184,0.306434,95887.0,95886.0,0.08423056]
[1739956991382,2.947665,95887.0,95886.0,0.08423056]
[1739956992763,2.947665,95887.0,95886.0,0.08508196]
[1739957001614,2.67574763,95887.0,95886.0,0.08508196]
[1739957001814,2.797665,95887.0,95886.0,0.08508196]
[1739957002869,2.797665,95887.0,95886.0,0.08408196]
[1739957003069,2.797665,95887.0,95886.0,0.08508196]
[1739957006595,2.947665,95887.0,95886.0,0.08508196]
[1739957012271,2.632974,95887.0,95886.0,0.08508196]
[1739957013132,1.935268,95887.0,95886.0,0.08508196]
[1739957013424,1.733094,95887.0,95886.0,0.08508196]
[1739957013624,0.306434,95887.0,95886.0,0.08508196]
[1739957013964,1.963055,95887.0,95886.0,0.08508196]
[1739957016278,1.413055,95887.0,95886.0,0.08508196]
[1739957018075,1.4134805,95887.0,95886.0,0.08508196]
[1739957024104,0.3068595,95887.0,95886.0,0.08508196]
[1739957024268,3.2529145,95887.0,95886.0,0.08508196]
[1739957024600,3.1740515,95887.0,95886.0,0.08508196]
[1739957025118,1.9299745,95887.0,95886.0,0.08508196]
[1739957027016,1.6235405,95887.0,95886.0,0.08508196]
[1739957027521,1.7799745,95887.0,95886.0,0.08508196]
[1739957029519,1.9299745,95887.0,95886.0,0.08508196]
[1739957034807,0.3068595,95887.0,95886.0,0.08508196]
[1739957035301,2.3875685,95887.0,95886.0,0.08508196]
[1739957035504,2.3125485,95887.0,95886.0,0.08508196]
[1739957040957,2.31239074,95887.0,95886.0,0.08508196]
[1739957041993,2.03946874,95887.0,95886.0,0.08508196]
[1739957043135,1.48632374,95887.0,95886.0,0.08508196]
[1739957043340,1.24785674,95887.0,95886.0,0.08508196]
[1739957045550,3.68479474,95887.0,95886.0,0.08508196]
[1739957045688,2.89194974,95887.0,95886.0,0.08508196]
[1739957046303,2.44719474,95887.0,95886.0,0.08508196]
[1739957049131,1.46126974,95887.0,95886.0,0.08508196]
[1739957053262,1.30533674,95887.0,95886.0,0.08508196]
[1739957054342,0.15670174,95887.0,95886.0,0.13308196]
[1739957054692,0.15670174,95887.0,95886.0,0.14784414]
[1739957055137,0.00026774,95887.0,95886.0,0.30427914]
[1739957055549,0.00026774,95887.0,95886.0,0.14784414]
[1739957055758,0.00026774,95887.0,95886.0,0.30532188]
[1739957055931,0.00026774,95887.0,95886.0,0.30327914]
[1739957056172,0.00026774,95887.0,95886.0,0.30427914]
[1739957056587,0.00026774,95887.0,95886.0,0.30327914]
[1739957056790,0.00026774,95887.0,95886.0,0.30627914]
[1739957058251,0.00026774,95887.0,95886.0,0.30327914]
[1739957058861,0.00026774,95887.0,95886.0,0.30827914]
[1739957059316,0.00026774,95887.0,95886.0,0.30327914]
[1739957059520,0.00026774,95887.0,95886.0,0.30827914]
[1739957063778,0.156417,95897.0,95890.0,0.156429]
[1739957063979,0.21112802,95910.0,95891.0,0.0965599]
[1739957064181,0.21112802,95910.0,95893.0,0.0818]
[1739957064384,0.156418,95897.0,95894.0,0.07212121]
[1739957064627,0.156418,95897.0,95894.0,0.15287853]
[1739957065386,0.156421,95895.0,95894.0,0.15287853]
[1739957066227,0.156421,95895.0,95894.0,0.15487853]
[1739957066654,0.156418,95897.0,95894.0,0.15287853]
[1739957066861,0.156419,95896.0,95894.0,0.15287853]
[1739957067757,0.156419,95896.0,95894.0,0.15487853]
[1739957068172,0.156419,95896.0,95894.0,0.15287853]
[1739957068371,0.156419,95896.0,95894.0,0.15487853]
[1739957068887,0.156421,95895.0,95894.0,0.15487853]
[1739957069690,0.156419,95896.0,95894.0,0.15287853]
[1739957070136,0.208556,95898.0,95894.0,0.15287853]
[1739957071094,0.156417,95897.0,95894.0,0.15487853]
[1739957071350,0.208556,95898.0,95894.0,0.15287853]
[1739957071738,0.208556,95898.0,95894.0,0.15387853]
[1739957071930,0.156417,95897.0,95894.0,0.15387853]
[1739957072166,0.208537,95906.0,95896.0,0.0816]
[1739957072364,0.06112802,95910.0,95897.0,0.01475717]
[1739957072494,0.208526,95912.0,95898.0,0.082]
[1739957072706,0.156414,95899.0,95898.0,0.082]
[1739957073331,0.156403,95906.0,95898.0,0.082]
[1739957073505,0.156408,95903.0,95900.0,0.0783]
[1739957074998,0.156408,95903.0,95900.0,0.0803]
[1739957075199,0.156404,95905.0,95900.0,0.0803]
[1739957075779,0.0004257,95907.0,95900.0,0.0803]
[1739957075987,0.0004257,95907.0,95901.0,0.0768]
[1739957076610,0.156406,95904.0,95902.0,0.00104261]
[1739957076809,0.156406,95904.0,95903.0,0.0819]
[1739957077193,0.156404,95905.0,95903.0,0.0819]